bitfinex/quotes_BTCUSD_20250917
["timestamp","ask_amount","ask_price","bid_price","bid_amount"]
[1758136972874,0.02782759,115740.0,115730.0,0.17328714]
[1758136973280,0.65280061,115740.0,115730.0,0.17428714]
[1758136973481,0.40281726,115740.0,115730.0,0.17428714]
[1758136973625,0.94252061,115740.0,115730.0,0.17428714]
[1758136973827,0.11309726,115740.0,115730.0,0.17428714]
[1758136974699,0.11309726,115740.0,115730.0,0.17328714]
[1758136975097,0.71028567,115740.0,115730.0,0.17328714]
[1758136975496,0.65280061,115740.0,115730.0,0.17328714]
[1758136975706,0.94248061,115740.0,115730.0,0.17328714]
[1758136975906,0.40277726,115740.0,115730.0,0.17328714]
[1758136976665,1.07443196,115740.0,115730.0,0.17328714]
[1758136977661,1.24723306,115740.0,115730.0,0.17328714]
[1758136979075,1.24723306,115740.0,115730.0,0.00047111]
[1758136979297,1.24723306,115740.0,115730.0,0.17328714]
[1758136980260,0.11309726,115740.0,115730.0,0.17328714]
[1758136980477,1.07427196,115740.0,115730.0,0.17328714]
[1758136981310,0.78475196,115740.0,115730.0,0.17328714]
[1758136981517,0.40261726,115740.0,115730.0,0.17328714]
[1758136981735,0.11409726,115740.0,115730.0,0.17328714]
[1758136981916,0.40357726,115740.0,115730.0,0.17328714]
[1758136982297,0.11409726,115740.0,115730.0,0.17328714]
[1758136982660,0.11309726,115740.0,115730.0,0.17328714]
[1758136982868,1.07419196,115740.0,115730.0,0.17328714]
[1758136983284,1.24699306,115740.0,115730.0,0.17328714]
[1758136983513,1.07419196,115740.0,115730.0,0.17328714]
[1758136984345,0.78475196,115740.0,115730.0,0.17328714]
[1758136984613,0.40249726,115740.0,115730.0,0.17328714]
[1758136985011,0.40245726,115740.0,115730.0,0.17328714]
[1758136985650,0.40245726,115740.0,115730.0,0.1812916]
[1758136985857,0.40245726,115740.0,115730.0,0.17328714]
[1758136987604,0.40241726,115740.0,115730.0,0.17328714]
[1758136988671,0.40237726,115740.0,115730.0,0.17328714]
[1758136988890,0.02782759,115740.0,115730.0,0.84494184]
[1758136989118,0.02782759,115740.0,115730.0,1.13418184]
[1758136989344,0.02782759,115740.0,115730.0,0.46252714]
[1758136990907,1e-08,115740.0,115730.0,1.13418184]
[1758136991099,1e-08,115740.0,115730.0,1.25341588]
[1758136991351,1e-08,115740.0,115730.0,1.76595522]
[1758136991571,1e-08,115740.0,115730.0,1.09230052]
[1758136992022,0.00010001,115740.0,115730.0,1.09426052]
[1758136992261,1e-08,115740.0,115730.0,1.09226052]
[1758136992515,1e-08,115740.0,115730.0,0.80314052]
[1758136992752,1e-08,115740.0,115730.0,0.92572118]
[1758136992985,1e-08,115740.0,115730.0,0.63660118]
[1758136993212,1e-08,115740.0,115730.0,0.92568118]
[1758136993456,1e-08,115740.0,115730.0,0.63660118]
[1758136993712,1e-08,115740.0,115730.0,0.92568118]
[1758136993928,1e-08,115740.0,115730.0,0.92168118]
[1758136994136,1e-08,115740.0,115730.0,0.71987085]
[1758136994353,1e-08,115740.0,115730.0,1.00895085]
[1758136995461,1e-08,115740.0,115730.0,0.63460118]
[1758136995681,1e-08,115740.0,115730.0,0.54124118]
[1758136996364,1e-08,115740.0,115730.0,0.51528714]
[1758136996561,1e-08,115740.0,115730.0,0.80424714]
[1758136996978,1e-08,115740.0,115730.0,0.80224714]
[1758136997211,1e-08,115740.0,115730.0,0.88851681]
[1758136998341,1e-08,115740.0,115730.0,0.51428714]
[1758136998540,0.75692438,115740.0,115730.0,0.17318625]
[1758136998755,0.08526968,115740.0,115730.0,0.17318625]
[1758136998980,0.08526968,115740.0,115730.0,0.17518625]
[1758136999210,0.08526968,115740.0,115730.0,0.23887585]
[1758136999922,1e-08,115740.0,115730.0,0.23887585]
[1758137000141,1e-08,115740.0,115730.0,0.23687585]
[1758137000422,1e-08,115740.0,115730.0,0.23787585]
[1758137000613,1e-08,115740.0,115730.0,0.90953055]
[1758137000850,1e-08,115740.0,115730.0,0.90853055]
[1758137001072,1e-08,115740.0,115730.0,0.23787585]
[1758137001305,1e-08,115740.0,115730.0,0.23687585]
[1758137001675,1e-08,115740.0,115730.0,0.23887585]
[1758137001880,1e-08,115740.0,115730.0,0.23687585]
[1758137002458,1e-08,115740.0,115730.0,0.90853055]
[1758137002895,1e-08,115740.0,115730.0,1.24853055]
[1758137003111,1e-08,115740.0,115730.0,1.25199117]
[1758137003526,1e-08,115740.0,115730.0,1.34535117]
[1758137003738,1e-08,115740.0,115730.0,1.34635117]
[1758137003970,1e-08,115740.0,115730.0,1.34535117]
[1758137004383,1e-08,115750.0,115740.0,0.5128011]
[1758137004602,1e-08,115750.0,115740.0,1.55840547]
[1758137005261,1e-08,115750.0,115740.0,1.33388394]
[1758137005496,1e-08,115750.0,115740.0,1.62256394]
[1758137005719,1e-08,115750.0,115740.0,1.33388394]
[1758137005943,1e-08,115750.0,115740.0,1.62252394]
[1758137007067,1e-08,115750.0,115740.0,1.62452394]
[1758137007277,1e-08,115750.0,115740.0,1.62252394]
[1758137007686,1e-08,115750.0,115740.0,1.62452394]
[1758137008334,1e-08,115750.0,115740.0,1.62448394]
[1758137009362,1e-08,115750.0,115740.0,0.95274924]
[1758137009571,1e-08,115750.0,115740.0,0.66422924]
[1758137010010,1e-08,115750.0,115740.0,1.62240394]
[1758137010228,1e-08,115750.0,115740.0,1.38788394]
[1758137010436,1e-08,115750.0,115740.0,1.67636394]
[1758137010641,1e-08,115750.0,115740.0,1.67236394]
[1758137010848,1e-08,115750.0,115740.0,1.67436394]
[1758137011052,1e-08,115750.0,115740.0,1.38588394]
[1758137011275,1e-08,115750.0,115740.0,1.67432394]
[1758137011711,1e-08,115750.0,115740.0,1.67442394]
[1758137012111,1e-08,115750.0,115740.0,1.70037564]
[1758137013033,0.0035,115750.0,115740.0,0.65501127]
[1758137013254,0.0035,115750.0,115740.0,0.28905957]
[1758137013476,0.0035,115750.0,115740.0,0.57745957]
[1758137014241,0.0035,115750.0,115740.0,0.57741957]
[1758137016423,0.0035,115750.0,115740.0,0.57541957]
[1758137016642,0.0035,115750.0,115740.0,0.66268924]
[1758137017286,0.0035,115750.0,115740.0,1.67434394]
[1758137017737,1e-08,115750.0,115740.0,1.70029686]
[1758137017960,1e-08,115760.0,115750.0,0.51278617]
[1758137018172,1e-08,115760.0,115750.0,1.80861211]
[1758137018381,1e-08,115760.0,115750.0,1.42519741]
[1758137018600,1e-08,115760.0,115750.0,2.09685211]
[1758137018809,1e-08,115760.0,115750.0,2.49685211]
[1758137019315,1e-08,115760.0,115750.0,2.49695211]
[1758137019752,0.0004,115790.0,115780.0,0.8443961]
[1758137019958,0.0004,115790.0,115780.0,1.31118577]
[1758137020175,0.0004,115790.0,115780.0,1.02302577]
[1758137020638,0.0004,115790.0,115780.0,1.3371289]
[1758137021016,0.00044712,115790.0,115780.0,1.3371289]
[1758137021432,1e-08,115790.0,115780.0,1.43026128]
[1758137021674,1e-08,115790.0,115780.0,1.14210128]
[1758137021797,1e-08,115790.0,115780.0,1.77018128]
[1758137021996,1e-08,115790.0,115780.0,1.48210128]
[1758137022233,1e-08,115790.0,115780.0,1.77018128]
[1758137022632,1e-08,115790.0,115780.0,1.77218128]
[1758137023254,1e-08,115790.0,115780.0,0.81244658]
[1758137023834,1e-08,115790.0,115780.0,0.72717691]
[1758137024035,1e-08,115790.0,115780.0,1.08034381]
[1758137024482,1e-08,115790.0,115780.0,1.07834381]
[1758137024857,1e-08,115790.0,115780.0,1.07830381]
[1758137025777,1e-08,115790.0,115780.0,1.07930381]
[1758137027406,1e-08,115790.0,115780.0,1.75095851]
[1758137027953,1e-08,115790.0,115780.0,1.07930381]
[1758137028748,1e-08,115790.0,115780.0,1.07830381]
[1758137028954,1e-08,115790.0,115780.0,1.75195851]
[1758137029722,1e-08,115790.0,115780.0,1.74995851]
[1758137029983,1e-08,115790.0,115780.0,1.36863851]
[1758137030197,1e-08,115790.0,115780.0,0.98574381]
[1758137030435,1e-08,115790.0,115780.0,1.07906381]
[1758137030998,1e-08,115790.0,115780.0,0.79130381]
[1758137031201,1e-08,115790.0,115780.0,1.75071851]
[1758137032016,1e-08,115790.0,115780.0,1.83598818]
[1758137032206,1e-08,115790.0,115780.0,1.83498818]
[1758137033680,1e-08,115790.0,115780.0,1.83698818]
[1758137033884,1e-08,115790.0,115780.0,1.88698818]
[1758137034088,1e-08,115790.0,115780.0,1.83698818]
[1758137034521,1e-08,115790.0,115780.0,1.83498818]
[1758137034725,1e-08,115790.0,115780.0,1.91514008]
[1758137034932,1e-08,115790.0,115780.0,1.91714008]
[1758137035133,1e-08,115790.0,115780.0,1.91514008]
[1758137035477,1e-08,115790.0,115780.0,1.91714008]
[1758137035885,1e-08,115790.0,115780.0,1.91698008]
[1758137036359,1e-08,115790.0,115780.0,1.62938008]
[1758137036682,1e-08,115790.0,115780.0,1.74951851]
[1758137036870,1e-08,115790.0,115780.0,1.07782381]
[1758137037018,1e-08,115790.0,115780.0,1.07982381]
[1758137037216,1e-08,115790.0,115780.0,1.74947851]
[1758137037676,1e-08,115790.0,115780.0,1.75047851]
[1758137037910,1e-08,115790.0,115780.0,1.07882381]
[1758137038388,1e-08,115790.0,115780.0,1.07782381]
[1758137038770,1e-08,115790.0,115780.0,1.70374139]
[1758137039634,1e-08,115790.0,115780.0,0.87757348]
[1758137039848,1e-08,115790.0,115780.0,1.42851348]
[1758137040057,1e-08,115790.0,115780.0,1.13907348]
[1758137040259,1e-08,115790.0,115780.0,1.42647348]
[1758137040707,1e-08,115790.0,115780.0,1.42947348]
[1758137040915,1e-08,115790.0,115780.0,1.42647348]
[1758137041128,1e-08,115790.0,115780.0,1.42847348]
[1758137041336,1e-08,115790.0,115780.0,1.05580381]
[1758137041544,1e-08,115790.0,115780.0,1.34116381]
[1758137041774,1e-08,115790.0,115780.0,1.05480381]
[1758137042023,1e-08,115790.0,115780.0,1.25689414]
[1758137042859,1e-08,115790.0,115780.0,0.96953414]
[1758137043072,1e-08,115790.0,115780.0,1.25589414]
[1758137043721,1e-08,115790.0,115780.0,0.96853414]
[1758137043932,1e-08,115790.0,115780.0,1.25685414]
[1758137044141,1e-08,115790.0,115780.0,1.34212381]
[1758137044971,1e-08,115790.0,115780.0,1.07862381]
[1758137046083,1e-08,115790.0,115780.0,1.61627172]
[1758137046284,1e-08,115790.0,115780.0,1.61827172]
[1758137047097,1e-08,115790.0,115780.0,1.61627172]
[1758137047409,1e-08,115790.0,115780.0,1.78169329]
[1758137047577,1e-08,115790.0,115780.0,1.78469329]
[1758137048151,1e-08,115790.0,115780.0,1.80737544]
[1758137048544,1e-08,115790.0,115780.0,2.20737544]
[1758137048934,1e-08,115790.0,115780.0,2.25437544]
[1758137049366,1e-08,115790.0,115780.0,2.25417544]
[1758137049605,1e-08,115790.0,115780.0,2.23245329]
[1758137050029,1e-08,115790.0,115780.0,1.94437329]
[1758137050226,1e-08,115790.0,115780.0,1.94637329]
[1758137050433,1e-08,115790.0,115780.0,1.89637329]
[1758137050640,1e-08,115790.0,115780.0,1.59480538]
[1758137050863,1e-08,115790.0,115780.0,1.69480538]
[1758137051301,1e-08,115790.0,115780.0,1.64480538]
[1758137051501,1e-08,115790.0,115780.0,1.64280538]
[1758137051710,1e-08,115790.0,115780.0,1.69280538]
[1758137051914,1e-08,115790.0,115780.0,1.64280538]
[1758137052135,1e-08,115790.0,115780.0,1.69280538]
[1758137052350,1e-08,115790.0,115780.0,2.23145329]
[1758137052966,1e-08,115790.0,115780.0,1.69280538]
[1758137053617,0.60706364,115830.0,115820.0,0.17268174]
[1758137053618,0.06841573,115830.0,115820.0,0.17268174]
[1758137053837,0.15415625,115830.0,115820.0,0.45964174]
[1758137054050,0.15415625,115830.0,115820.0,0.17268174]
[1758137054256,0.69280416,115830.0,115820.0,0.17268174]
[1758137054499,0.69280416,115830.0,115820.0,0.45964174]
[1758137054724,0.62458843,115830.0,115820.0,0.45964174]
[1758137056677,0.00067085,115830.0,115820.0,0.45964174]
[1758137056903,0.00067085,115830.0,115820.0,0.52287426]
[1758137057113,0.00067085,115830.0,115820.0,0.52387426]
[1758137057340,0.00067085,115830.0,115820.0,0.52287426]
[1758137058161,0.00067085,115830.0,115820.0,0.52587426]
[1758137058383,0.53931876,115830.0,115820.0,0.30273036]
[1758137058621,0.53931876,115830.0,115820.0,0.52637784]
[1758137059347,0.53931876,115830.0,115820.0,0.52337784]
[1758137059826,0.53931876,115830.0,115820.0,0.52437784]
[1758137060068,0.53931876,115830.0,115820.0,0.52337784]
[1758137060275,0.54031876,115830.0,115820.0,0.52337784]
[1758137060731,0.54031876,115830.0,115820.0,0.52329784]
[1758137060989,0.54031876,115830.0,115820.0,0.17268174]
[1758137061419,0.62558843,115830.0,115820.0,0.17268174]
[1758137062242,0.62558843,115830.0,115820.0,0.23589826]
[1758137062434,0.62558843,115830.0,115820.0,0.17268174]
[1758137062840,0.00167085,115830.0,115820.0,0.17268174]
[1758137065928,0.00067085,115830.0,115820.0,0.17268174]
[1758137066160,0.00167085,115830.0,115820.0,0.17268174]
[1758137066361,0.00067085,115830.0,115820.0,0.17268174]
[1758137066812,0.00067085,115830.0,115820.0,0.17368174]
[1758137067316,0.53931876,115830.0,115820.0,0.17368174]
[1758137067616,0.53931876,115830.0,115820.0,0.24357482]
[1758137067848,0.00067085,115830.0,115820.0,0.24357482]
[1758137068291,0.0002,115840.0,115830.0,0.51266683]
[1758137068524,0.0003412,115840.0,115830.0,0.51266683]
[1758137070238,0.0003412,115840.0,115830.0,0.51366683]
[1758137070418,0.0003412,115840.0,115830.0,0.51266683]
[1758137070631,0.0003412,115840.0,115830.0,0.55582801]
[1758137070829,0.0003412,115840.0,115830.0,0.55782801]
[1758137071082,0.0003412,115840.0,115830.0,0.84454801]
[1758137071476,1e-08,115850.0,115840.0,0.51265193]
[1758137071717,1e-08,115850.0,115840.0,1.13656951]
[1758137071929,1e-08,115850.0,115840.0,0.5979216]
[1758137072141,1e-08,115850.0,115840.0,1.13656951]
[1758137072421,1e-08,115850.0,115840.0,0.5979216]
[1758137072833,1e-08,115850.0,115840.0,0.60337884]
[1758137073045,1e-08,115850.0,115840.0,1.14202675]
[1758137073260,1e-08,115850.0,115840.0,0.60337884]
[1758137073494,1e-08,115850.0,115840.0,0.88997884]
[1758137073705,1e-08,115850.0,115840.0,1.42662675]
[1758137073891,1e-08,115850.0,115840.0,1.42762675]
[1758137074445,1e-08,115850.0,115840.0,0.88897884]
[1758137074641,1e-08,115850.0,115840.0,1.42762675]
[1758137075006,1e-08,115850.0,115840.0,1.51289642]
[1758137075150,1e-08,115860.0,115850.0,1.05128494]
[1758137075358,1e-08,115860.0,115850.0,1.31510428]
[1758137075955,1e-08,115860.0,115850.0,1.37911114]
[1758137076766,0.1002,115880.0,115870.0,0.71125514]
[1758137076968,0.1002,115880.0,115870.0,0.17260723]
[1758137076969,0.10034114,115880.0,115870.0,0.17260723]
[1758137077264,0.10034114,115880.0,115870.0,0.45916723]
[1758137077497,0.10034114,115880.0,115870.0,0.52906031]
[1758137078174,0.10034114,115880.0,115870.0,0.53723041]
[1758137078614,0.10034114,115880.0,115870.0,0.25067041]
[1758137078792,0.10034114,115880.0,115870.0,0.25267041]
[1758137079001,0.10034114,115880.0,115870.0,0.53923041]
[1758137080423,0.10034114,115880.0,115870.0,1.07787832]
[1758137080627,0.10034114,115880.0,115870.0,1.41787832]
[1758137080780,0.10034114,115880.0,115870.0,0.90515254]
[1758137080978,0.10034114,115880.0,115870.0,1.44380045]
[1758137081187,0.10034114,115880.0,115870.0,1.44376045]
[1758137081803,0.10034114,115880.0,115870.0,0.90511254]
[1758137082046,0.10034114,115880.0,115870.0,1.44376045]
[1758137083641,0.10034114,115880.0,115870.0,0.90511254]
[1758137083856,0.10034114,115880.0,115870.0,0.90507254]
[1758137084055,0.10034114,115880.0,115870.0,1.44372045]
[1758137084750,0.10034114,115880.0,115870.0,1.44396045]
[1758137085148,0.10034114,115880.0,115870.0,0.61859254]
[1758137085364,0.10034114,115880.0,115870.0,1.44400045]
[1758137086109,0.10034114,115880.0,115870.0,1.84400045]
[1758137086330,0.10034114,115880.0,115870.0,1.44400045]
[1758137087502,1e-08,115880.0,115870.0,1.44400045]
[1758137087930,1e-08,115880.0,115870.0,0.93550444]
[1758137088129,1e-08,115880.0,115870.0,1.55942202]
[1758137088477,1e-08,115890.0,115880.0,0.51259233]
[1758137088677,1e-08,115890.0,115880.0,1.18764142]
[1758137088876,1e-08,115890.0,115880.0,1.18774142]
[1758137089087,1e-08,115890.0,115880.0,1.21366119]
[1758137089515,1e-08,115890.0,115880.0,0.67501328]
[1758137089866,1e-08,115890.0,115880.0,1.21366119]
[1758137090312,1e-08,115890.0,115880.0,1.61366119]
[1758137090726,1e-08,115890.0,115880.0,1.67762558]
[1758137090900,1e-08,115890.0,115880.0,1.27762558]
[1758137092149,1e-08,115890.0,115880.0,0.73897767]
[1758137092888,1e-08,115890.0,115880.0,1.27762558]
[1758137094614,1e-08,115890.0,115880.0,1.28062558]
[1758137094834,1e-08,115890.0,115880.0,1.27762558]
[1758137095050,1e-08,115890.0,115880.0,1.36289525]
[1758137095272,1e-08,115890.0,115880.0,1.78593525]
[1758137095507,1e-08,115890.0,115880.0,0.65257649]
[1758137095736,1e-08,115890.0,115880.0,0.93901649]
[1758137095963,1e-08,115890.0,115880.0,0.65557649]
[1758137096178,0.79649503,115890.0,115880.0,0.07601977]
[1758137096654,0.08526968,115890.0,115880.0,0.22269233]
[1758137096881,0.62391759,115890.0,115880.0,0.22269233]
[1758137097105,0.68960288,115890.0,115880.0,0.22269233]
[1758137097319,0.62391759,115890.0,115880.0,0.22269233]
[1758137097974,1e-08,115890.0,115880.0,0.22269233]
[1758137098629,1e-08,115890.0,115880.0,0.22369233]
[1758137098843,1e-08,115890.0,115880.0,0.50913233]
[1758137099069,1e-08,115890.0,115880.0,0.54358584]
[1758137101944,1e-08,115890.0,115880.0,0.22269233]
[1758137102168,1e-08,115890.0,115880.0,0.50913233]
[1758137102628,1e-08,115890.0,115880.0,0.22269233]
[1758137102916,1e-08,115890.0,115880.0,0.50913233]
[1758137105008,1e-08,115890.0,115880.0,0.22269233]
[1758137105289,1e-08,115890.0,115880.0,0.61684168]
[1758137105574,1e-08,115890.0,115880.0,0.95684168]
[1758137106592,1e-08,115890.0,115880.0,0.98276378]
[1758137108006,1e-08,115890.0,115880.0,0.98272378]
[1758137108673,1e-08,115890.0,115880.0,0.69632378]
[1758137108873,1e-08,115890.0,115880.0,0.94059136]
[1758137109322,0.9276256,115890.0,115880.0,0.0760221]
[1758137109571,1.09504816,115890.0,115880.0,0.0501]
[1758137109793,0.65533218,115890.0,115880.0,0.0501]
[1758137110017,1.2676256,115890.0,115880.0,0.0501]
[1758137110243,0.42526968,115890.0,115880.0,0.0501]
[1758137110514,1.2676256,115890.0,115880.0,0.05]
[1758137110752,1.09504816,115890.0,115880.0,0.05]
[1758137110986,0.75504816,115890.0,115880.0,0.22259233]
[1758137111217,0.9276256,115890.0,115880.0,0.22259233]
[1758137111434,0.9276256,115890.0,115880.0,0.05]
[1758137112079,0.9276256,115890.0,115880.0,0.22259233]
[1758137112304,0.25784712,115890.0,115880.0,0.05]
[1758137112538,0.25784712,115890.0,115880.0,0.22259233]
[1758137113010,0.9276256,115890.0,115880.0,0.22259233]
[1758137113495,0.75904816,115890.0,115880.0,0.22259233]
[1758137113730,0.75504816,115890.0,115880.0,0.22259233]
[1758137113965,0.75904816,115890.0,115880.0,0.22259233]
[1758137114423,0.08926968,115890.0,115880.0,0.22259233]
[1758137114844,0.08926968,115890.0,115880.0,0.22269233]
[1758137115755,0.75904816,115890.0,115880.0,0.22269233]
[1758137119447,0.00400001,115890.0,115880.0,0.56269233]
[1758137119689,0.00400001,115890.0,115880.0,0.647962]
[1758137120644,0.00400001,115890.0,115880.0,0.96464602]
[1758137122559,1e-08,115890.0,115880.0,1.05788602]
[1758137122998,0.06821573,115930.0,115920.0,0.17253278]
[1758137123235,0.15362654,115930.0,115920.0,0.17253278]
[1758137123471,0.82340502,115930.0,115920.0,0.17253278]
[1758137123933,0.82340502,115930.0,115920.0,0.17263278]
[1758137124163,0.75518929,115930.0,115920.0,0.17263278]
[1758137124612,0.08541081,115930.0,115920.0,0.17263278]
[1758137125090,0.75618929,115930.0,115920.0,0.17263278]
[1758137125332,0.08641081,115930.0,115920.0,0.17263278]
[1758137125565,0.08641081,115930.0,115920.0,0.19669487]
[1758137125842,0.75518929,115930.0,115920.0,0.17263278]
[1758137126085,0.75518929,115930.0,115920.0,0.17363278]
[1758137126309,0.00014114,115930.0,115920.0,0.17363278]
[1758137126543,0.00014114,115930.0,115920.0,0.46595278]
[1758137126752,0.00014114,115930.0,115920.0,0.48802473]
[1758137127459,0.00014114,115930.0,115920.0,0.48702473]
[1758137127671,0.00014114,115930.0,115920.0,0.51293884]
[1758137128328,0.00014114,115930.0,115920.0,0.85393884]
[1758137128563,0.00014114,115930.0,115920.0,0.85293884]
[1758137128782,0.00014114,115930.0,115920.0,0.85393884]
[1758137129001,0.00014114,115930.0,115920.0,0.85293884]
[1758137129228,0.00014114,115930.0,115920.0,0.56884855]
[1758137129479,0.00014114,115930.0,115920.0,0.8418966]
[1758137129705,0.00014114,115930.0,115920.0,0.8419366]
[1758137130386,0.00014114,115930.0,115920.0,0.5497766]
[1758137130641,0.00014114,115930.0,115920.0,0.8388966]
[1758137131375,0.00014114,115930.0,115920.0,0.8398966]
[1758137131594,0.00014114,115930.0,115920.0,0.87107514]
[1758137131819,0.00014114,115930.0,115920.0,0.57895514]
[1758137132069,0.00014114,115930.0,115920.0,0.87119514]
[1758137132767,0.07445123,115970.0,115960.0,0.17247326]
[1758137132993,0.08698914,115970.0,115960.0,0.17257326]
[1758137133737,0.00171947,115970.0,115960.0,0.46661326]
[1758137133975,0.00171947,115970.0,115960.0,0.80661326]
[1758137134215,0.0014905,115970.0,115960.0,0.89188293]
[1758137134671,0.0014905,115970.0,115960.0,1.56166141]
[1758137134909,0.0014905,115970.0,115960.0,0.89188293]
[1758137135142,0.0014905,115970.0,115960.0,1.56166141]
[1758137135590,0.0014905,115970.0,115960.0,1.56594141]
[1758137135842,7e-05,115990.0,115980.0,0.51244352]
[1758137136081,7e-05,115990.0,115980.0,0.87571244]
[1758137136082,0.00021106,115990.0,115980.0,0.87571244]
[1758137136348,0.00021106,115990.0,115980.0,0.87575244]
[1758137136595,0.66998954,115990.0,115980.0,0.24103244]
[1758137136842,0.66998954,115990.0,115980.0,0.53715244]
[1758137137311,0.00021106,115990.0,115980.0,0.53715244]
[1758137137792,0.00021106,115990.0,115980.0,0.53815244]
[1758137138249,0.66998954,115990.0,115980.0,0.53815244]
[1758137138915,0.00021106,115990.0,115980.0,0.53815244]
[1758137140213,0.00021106,115990.0,115980.0,0.62342211]
[1758137140441,0.00021106,115990.0,115980.0,1.66335249]
[1758137140687,0.00021106,115990.0,115980.0,1.66235249]
[1758137140894,0.00021106,115990.0,115980.0,0.99257401]
[1758137141128,0.00021106,115990.0,115980.0,0.99357401]
[1758137141382,0.00021106,115990.0,115980.0,1.66335249]
[1758137141593,0.00021106,115990.0,115980.0,0.99357401]
[1758137141809,0.00021106,115990.0,115980.0,0.69645401]
[1758137142247,0.00021106,115990.0,115980.0,1.39341401]
[1758137142468,0.00021106,115990.0,115980.0,1.39241401]
[1758137143551,1e-08,115990.0,115980.0,2.06219249]
[1758137143979,1e-08,115990.0,115980.0,1.44241401]
[1758137144405,1e-08,115990.0,115980.0,1.44441401]
[1758137144623,0.0002,116010.0,116000.0,0.17241379]
[1758137144854,0.0002,116010.0,116000.0,0.7354088]
[1758137145088,0.0002,116010.0,116000.0,0.75674226]
[1758137145507,0.0002,116010.0,116000.0,1.05278226]
[1758137145720,1e-08,116010.0,116000.0,1.45278226]
[1758137146192,1e-08,116010.0,116000.0,2.15271264]
[1758137146449,1e-08,116010.0,116000.0,1.48293416]
[1758137146872,1e-08,116010.0,116000.0,1.18689416]
[1758137147074,1e-08,116010.0,116000.0,1.54650544]
[1758137147500,1e-08,116010.0,116000.0,1.54750544]
[1758137147721,1e-08,116010.0,116000.0,1.54650544]
[1758137147918,1e-08,116010.0,116000.0,1.55050544]
[1758137148183,1e-08,116010.0,116000.0,2.22028392]
[1758137148402,1e-08,116010.0,116000.0,1.54650544]
[1758137148544,1e-08,116010.0,116000.0,2.21728392]
[1758137148758,1e-08,116010.0,116000.0,1.52707198]
[1758137148987,1e-08,116010.0,116000.0,1.22891198]
[1758137149193,1e-08,116010.0,116000.0,1.50084008]
[1758137149394,1e-08,116010.0,116000.0,1.20276008]
[1758137149592,1e-08,116010.0,116000.0,0.71749041]
[1758137150038,1e-08,116010.0,116000.0,1.01549041]
[1758137150292,0.0002,116050.0,116040.0,0.17235436]
[1758137150504,0.00034101,116050.0,116040.0,0.50478672]
[1758137150830,0.67011949,116050.0,116040.0,0.50478672]
[1758137151025,0.67011949,116050.0,116040.0,0.47031436]
[1758137151231,0.00034101,116050.0,116040.0,0.47041436]
[1758137151443,0.67411949,116050.0,116040.0,0.53554518]
[1758137151792,0.67011949,116050.0,116040.0,0.53554518]
[1758137151994,0.67011949,116050.0,116040.0,0.53654518]
[1758137152203,0.67011949,116050.0,116040.0,0.47125436]
[1758137152417,0.67011949,116050.0,116040.0,0.47025436]
[1758137152677,0.67011949,116050.0,116040.0,0.17245436]
[1758137152678,0.75538916,116050.0,116040.0,0.17245436]
[1758137153039,0.92772866,116050.0,116040.0,0.17245436]
[1758137153271,0.08561068,116050.0,116040.0,0.17245436]
[1758137153518,0.75538916,116050.0,116040.0,0.17245436]
[1758137153758,0.75538916,116050.0,116040.0,0.17345436]
[1758137154196,0.75538916,116050.0,116040.0,0.17245436]
[1758137154448,0.67011949,116050.0,116040.0,0.17245436]
[1758137154663,0.67011949,116050.0,116040.0,0.20694672]
[1758137154893,0.67211949,116050.0,116040.0,0.20694672]
[1758137155153,0.00234101,116050.0,116040.0,0.536967]
[1758137156225,0.00034101,116050.0,116040.0,0.536967]
[1758137156518,0.00124917,116080.0,116070.0,0.17230981]
[1758137156723,0.08651884,116080.0,116070.0,0.47030981]
[1758137157142,0.75629732,116080.0,116070.0,0.47030981]
[1758137157351,0.75629732,116080.0,116070.0,0.17240981]
[1758137158277,0.00124917,116080.0,116070.0,0.20861507]
[1758137158493,0.00124917,116080.0,116070.0,0.20761507]
[1758137158711,0.00224917,116080.0,116070.0,0.20761507]
[1758137158934,0.00224917,116080.0,116070.0,0.20327312]
[1758137159383,0.00224917,116080.0,116070.0,0.26812849]
[1758137159937,0.00124917,116080.0,116070.0,0.80413676]
[1758137160378,0.00124917,116080.0,116070.0,0.80513676]
[1758137160576,1e-08,116080.0,116070.0,1.30955833]
[1758137160985,1e-08,116080.0,116070.0,1.31255833]
[1758137161502,1e-08,116080.0,116070.0,0.99383816]
[1758137161729,0.53600828,116080.0,116070.0,0.36539537]
[1758137161950,0.70830324,116080.0,116070.0,0.06495537]
[1758137162169,0.53600828,116080.0,116070.0,0.53478518]
[1758137162387,1e-08,116080.0,116070.0,0.53478518]
[1758137162619,1e-08,116080.0,116070.0,0.62005485]
[1758137162854,1e-08,116080.0,116070.0,0.71082452]
[1758137163067,1e-08,116080.0,116070.0,1.25083279]
[1758137163274,1e-08,116080.0,116070.0,0.71482452]
[1758137163486,1e-08,116080.0,116070.0,0.71082452]
[1758137163935,0.53600828,116080.0,116070.0,0.32253485]
[1758137164194,0.53600828,116080.0,116070.0,0.53662518]
[1758137164410,0.53600828,116080.0,116070.0,0.54172518]
[1758137164630,1e-08,116080.0,116070.0,0.65750675]
[1758137165065,1e-08,116080.0,116070.0,0.99750675]
[1758137165285,1e-08,116080.0,116070.0,1.11220807]
[1758137166396,1e-08,116080.0,116070.0,1.13277642]
[1758137166610,1e-08,116080.0,116070.0,1.08077642]
[1758137167046,1e-08,116080.0,116070.0,0.78645642]
[1758137167262,1e-08,116080.0,116070.0,0.24240518]
[1758137167486,1e-08,116080.0,116070.0,0.0001]
[1758137167487,0.71341324,116080.0,116070.0,0.0001]
[1758137167672,0.56381828,116080.0,116070.0,0.0021]
[1758137167974,1e-08,116080.0,116070.0,0.24239784]
[1758137168214,0.53600828,116080.0,116070.0,0.317256]
[1758137168432,0.53600828,116080.0,116070.0,0.24966797]
[1758137168852,0.53796828,116080.0,116070.0,0.17240981]
[1758137169074,0.56066828,116080.0,116070.0,0.47580981]
[1758137169308,0.53796828,116080.0,116070.0,0.17240981]
[1758137169533,0.64593795,116080.0,116070.0,0.17240981]
[1758137169780,0.08526968,116080.0,116070.0,0.17444981]
[1758137169998,0.08526968,116080.0,116070.0,0.0021]
[1758137169999,0.83249488,116080.0,116070.0,0.0021]
[1758137170219,0.82138291,116080.0,116070.0,0.0001]
[1758137170434,0.82138291,116080.0,116070.0,0.0021]
[1758137170872,0.10992968,116080.0,116070.0,0.17444981]
[1758137171089,0.64908795,116080.0,116070.0,0.17240981]
[1758137171309,0.64593795,116080.0,116070.0,0.17540981]
[1758137171552,0.64593795,116080.0,116070.0,0.17240981]
[1758137171860,0.64593795,116080.0,116070.0,0.17754981]
[1758137171861,1e-08,116080.0,116070.0,0.17754981]
[1758137171950,0.53600828,116080.0,116070.0,0.48366981]